bitfinex-derivatives/quotes_SOLF0:USTF0_20241217
["timestamp","ask_amount","ask_price","bid_price","bid_amount"]
[1734425956877,2.3009,217.31,217.24,9.30181184]
[1734425956878,2.3012,217.29,217.24,9.30181184]
[1734425957476,2.3012,217.29,217.26,7.14181184]
[1734425958179,7.14181184,217.33,217.28,2.3012]
[1734425958983,2.3009,217.31,217.28,2.3012]
[1734425959176,2.3009,217.31,217.27,2.3013]
[1734425959987,2.3009,217.31,217.26,7.14181184]
[1734425960276,1.6004,217.35,217.28,7.14181184]
[1734425960277,7.14181184,217.34,217.28,7.14181184]
[1734425960674,7.14181184,217.34,217.29,2.16]
[1734425961179,2.3006,217.34,217.29,2.16]
[1734425961381,9.44241184,217.34,217.29,2.16]
[1734425962687,9.44241184,217.34,217.31,2.3009]
[1734425964986,2.3005,217.35,217.31,2.3009]
[1734425965183,9.44231184,217.35,217.31,2.3009]
[1734425965584,2.3006,217.34,217.31,2.3009]
[1734425970487,2.3007,217.33,217.3,2.301]
[1734425971182,7.14181184,217.33,217.29,2.16]
[1734425972188,2.3009,217.31,217.29,2.16]
[1734425974093,9.44271184,217.31,217.29,2.16]
[1734425977486,7.14181184,217.31,217.29,2.16]
[1734425977887,2.3008,217.32,217.29,4.4611]
[1734425979694,9.44251184,217.33,217.29,4.4611]
[1734425981595,2.3008,217.32,217.29,2.16]
[1734425982292,2.3008,217.32,217.29,4.4611]
[1734425982699,2.3008,217.32,217.29,2.16]
[1734425984289,7.14181184,217.31,217.29,2.16]
[1734425985698,9.44281184,217.31,217.27,2.3013]
[1734425986996,7.14181184,217.29,217.27,2.3013]
[1734425987204,9.44301184,217.29,217.24,2.3017]
[1734425987498,7.14181184,217.27,217.24,2.14]
[1734425987700,7.14181184,217.27,217.25,4.87524744]
[1734425987903,7.14181184,217.27,217.25,2.3015]
[1734425988901,9.44301184,217.29,217.25,2.3015]
[1734425989100,9.44301184,217.29,217.24,2.14]
[1734425989301,9.44301184,217.29,217.26,2.3014]
[1734425990107,1.5433,217.36,217.24,2.14]
[1734425990301,7.14181184,217.31,217.25,12.02093324]
[1734425990502,7.14181184,217.31,217.26,4.8791214]
[1734425990706,7.14181184,217.31,217.27,4.8791214]
[1734425990902,7.14181184,217.31,217.29,2.3011]
[1734425994001,7.14181184,217.31,217.26,2.14]
[1734425994309,7.14181184,217.29,217.27,7.18461953]
[1734425994504,7.14181184,217.29,217.27,2.3013]
[1734425995205,7.14181184,217.29,217.28,4.88566723]
[1734425995409,7.14181184,217.29,217.28,2.3012]
[1734425995603,7.14181184,217.31,217.28,4.8854501]
[1734425995805,2.3008,217.33,217.26,2.14]
[1734425996110,7.14181184,217.32,217.27,4.88539667]
[1734425996304,7.14181184,217.32,217.28,4.88539667]
[1734425996505,2.3006,217.34,217.29,4.88539667]
[1734425996702,7.14181184,217.32,217.26,2.14]
[1734425997011,7.14181184,217.32,217.27,4.88529097]
[1734425997310,7.14181184,217.32,217.3,2.301]
[1734425998609,7.14181184,217.32,217.31,4.884385]
[1734425999001,7.14181184,217.33,217.31,4.884385]
[1734425999206,7.14181184,217.33,217.26,9.28181184]
[1734425999404,7.14181184,217.33,217.27,4.88440256]
[1734425999612,7.14181184,217.33,217.31,2.3009]
[1734426000216,7.14181184,217.33,217.3,2.301]
[1734426000515,7.14181184,217.31,217.27,2.14]
[1734426000911,7.14181184,217.31,217.29,2.3011]
[1734426002205,7.14181184,217.31,217.3,4.88580564]
[1734426005416,7.14181184,217.31,217.29,2.3011]
[1734426006313,9.44281184,217.31,217.3,4.88593548]
[1734426006618,9.44281184,217.31,217.26,2.14]
[1734426006814,7.14181184,217.31,217.27,4.88650407]
[1734426007122,7.14181184,217.31,217.28,4.88650407]
[1734426007418,7.14181184,217.33,217.28,4.88650407]
[1734426007914,9.44261184,217.33,217.29,4.88650407]
[1734426008110,7.14181184,217.31,217.26,2.14]
[1734426008327,7.14181184,217.31,217.27,4.88650925]
[1734426008617,7.14181184,217.31,217.26,2.14]
[1734426008618,7.14181184,217.31,217.28,4.88650925]
[1734426008817,7.14181184,217.31,217.29,4.88650925]
[1734426009022,7.14181184,217.31,217.3,4.88650925]
[1734426009217,7.14181184,217.31,217.26,2.14]
[1734426009419,7.14181184,217.31,217.3,4.88651646]
[1734426009615,7.14181184,217.31,217.26,2.14]
[1734426009922,7.14181184,217.31,217.27,4.88734533]
[1734426010223,7.14181184,217.31,217.29,2.301]
[1734426010411,7.14181184,217.31,217.3,4.88734533]
[1734426010816,7.14181184,217.31,217.3,7.18834533]
[1734426011319,7.14181184,217.31,217.3,4.88734533]
[1734426011917,9.44271184,217.31,217.3,4.88734533]
[1734426012118,9.44271184,217.31,217.27,2.14]
[1734426012720,7.14181184,217.31,217.28,7.18940648]
[1734426012921,7.14181184,217.31,217.29,4.88820648]
[1734426013220,7.14181184,217.31,217.28,2.3012]
[1734426013415,9.44271184,217.31,217.29,4.88677691]
[1734426013612,9.44271184,217.31,217.28,2.3012]
[1734426013817,9.44271184,217.31,217.27,4.4413]
[1734426014020,9.44271184,217.31,217.29,4.88711702]
[1734426014218,9.44271184,217.31,217.27,4.4413]
[1734426014419,2.3007,217.34,217.3,2.301]
[1734426014621,2.3007,217.34,217.27,2.14]
[1734426014823,7.14181184,217.33,217.28,4.88652041]
[1734426015021,7.14181184,217.33,217.3,2.301]
[1734426015624,7.14181184,217.33,217.27,2.14]
[1734426015831,7.14181184,217.33,217.31,2.3009]
[1734426017130,9.44251184,217.33,217.31,2.3009]
[1734426017435,9.44251184,217.33,217.3,2.301]
[1734426018637,9.44251184,217.33,217.27,2.14]
[1734426018638,9.44251184,217.33,217.31,7.18708076]
[1734426018936,9.44251184,217.33,217.31,2.3009]
[1734426019131,9.44251184,217.33,217.27,2.14]
[1734426019433,2.3009,217.32,217.3,2.301]
[1734426019740,7.14181184,217.31,217.27,2.14]
[1734426019931,7.14181184,217.29,217.28,4.88778174]
[1734426020137,7.14181184,217.29,217.27,2.14]
[1734426020436,9.44301184,217.29,217.26,2.14]
[1734426020632,2.3012,217.29,217.27,4.8887581]
[1734426020935,7.14181184,217.28,217.26,2.14]
[1734426021135,7.14181184,217.28,217.27,4.88878246]
[1734426022335,9.44301184,217.28,217.27,4.88878246]
[1734426022835,9.44301184,217.28,217.26,2.14]
[1734426024730,7.14181184,217.28,217.21,1.5403]
[1734426024932,7.14181184,217.26,217.23,2.3018]
[1734426025237,7.14181184,217.26,217.24,4.88736281]
[1734426025435,7.14181184,217.26,217.25,4.88736281]
[1734426026038,7.14181184,217.26,217.25,4.88660841]
[1734426026240,9.44331184,217.26,217.25,4.88660841]
[1734426026534,9.44331184,217.26,217.22,4.4419]
[1734426026740,9.44331184,217.26,217.23,4.88636815]
[1734426027033,9.44331184,217.26,217.24,4.88636815]
[1734426027239,9.44331184,217.26,217.22,4.4419]
[1734426027440,9.44331184,217.26,217.23,4.8855446]
[1734426027739,9.44331184,217.26,217.24,4.8855446]
[1734426027939,9.44331184,217.26,217.22,2.3019]
[1734426028239,9.44331184,217.26,217.23,4.88493456]
[1734426028438,9.44331184,217.26,217.22,2.3019]
[1734426028738,7.14181184,217.27,217.23,7.18681942]
[1734426028939,7.14181184,217.27,217.24,4.88511942]
[1734426029237,7.14181184,217.27,217.21,2.14]
[1734426029432,7.14181184,217.27,217.24,2.3016]
[1734426029834,1.5433,217.36,217.25,12.02567947]
[1734426030035,7.14181184,217.33,217.29,2.301]
[1734426030242,7.14181184,217.33,217.28,2.14]
[1734426030541,7.14181184,217.33,217.29,4.88048419]
[1734426030738,7.14181184,217.33,217.3,4.88048419]
[1734426030935,1.5433,217.36,217.27,9.28181184]
[1734426031131,1.5433,217.36,217.28,4.8797787]
[1734426031132,7.14181184,217.33,217.28,4.8797787]
[1734426031332,7.14181184,217.33,217.29,4.8797787]
[1734426031532,7.14181184,217.33,217.3,4.8797787]
[1734426031737,7.14181184,217.33,217.27,9.28181184]
[1734426031939,7.14181184,217.33,217.28,4.87973097]
[1734426032140,7.14181184,217.33,217.29,4.87973097]
[1734426032336,7.14181184,217.33,217.3,4.87973097]
[1734426032643,9.44251184,217.33,217.29,2.3011]
[1734426033846,9.44251184,217.33,217.3,7.18061967]
[1734426034036,1.5433,217.36,217.27,9.28181184]
[1734426034237,9.44241184,217.34,217.28,4.87941814]
[1734426034443,9.44241184,217.34,217.3,2.301]
[1734426035844,2.3007,217.33,217.3,2.301]
[1734426036143,7.14181184,217.32,217.27,2.14]
[1734426036340,9.44271184,217.32,217.28,4.87701687]
[1734426036542,9.44271184,217.32,217.27,2.14]
[1734426036734,9.44271184,217.32,217.28,7.1785597]
[1734426036939,7.14181184,217.34,217.29,4.8773597]
[1734426037248,7.14181184,217.34,217.3,4.8773597]
[1734426037438,7.14181184,217.34,217.29,2.3011]
[1734426037640,7.14181184,217.34,217.3,4.87612742]
[1734426037837,1.6327,217.39,217.3,2.3009]
[1734426038042,1.6327,217.39,217.31,4.87594313]
[1734426038043,7.14181184,217.35,217.31,4.87594313]
[1734426038239,1.4828,217.42,217.32,2.14]
[1734426038538,7.14181184,217.41,217.34,7.14181184]
[1734426038740,1.4828,217.42,217.35,4.87411756]
[1734426038741,8.62461184,217.42,217.35,4.87411756]
[1734426038942,8.62461184,217.42,217.36,4.87411756]
[1734426039138,8.62461184,217.42,217.37,4.4402]
[1734426039139,10.92441184,217.42,217.37,4.4402]
[1734426041541,7.14181184,217.4,217.37,2.14]
[1734426041844,7.14181184,217.38,217.35,2.3004]
[1734426042042,7.14181184,217.38,217.34,2.14]
[1734426043039,9.44201184,217.38,217.34,4.4405]
[1734426044051,9.44201184,217.38,217.34,2.14]
[1734426044349,7.14181184,217.36,217.34,2.14]
[1734426044745,2.3003,217.37,217.34,2.14]
[1734426045843,2.3002,217.38,217.34,4.4406]
[1734426046046,7.14181184,217.38,217.34,4.4406]
[1734426046348,7.14181184,217.39,217.34,2.14]
[1734426047451,7.14181184,217.39,217.35,2.3004]
[1734426047946,7.14181184,217.41,217.34,9.28181184]
[1734426048143,2.2997,217.43,217.34,9.28181184]
[1734426048348,7.14181184,217.42,217.36,7.14181184]
[1734426049149,1.5164,217.49,217.38,7.14181184]
[1734426049349,1.5164,217.49,217.42,7.14181184]
[1734426049546,1.4992,217.53,217.46,7.14181184]
[1734426049747,7.14181184,217.54,217.47,2.14]
[1734426050544,2.2984,217.55,217.5,2.2989]
[1734426050853,9.44021184,217.55,217.5,2.2989]
[1734426051152,3.6992,217.6,217.48,7.14181184]
[1734426051352,3.6992,217.6,217.51,2.2988]
[1734426051353,9.44011184,217.56,217.51,2.2988]
[1734426052151,2.2984,217.55,217.5,2.2989]
[1734426052552,7.14181184,217.54,217.47,2.14]
[1734426052753,7.14181184,217.54,217.46,7.14181184]
[1734426052952,7.14181184,217.54,217.49,2.2989]
[1734426053154,7.14181184,217.54,217.49,2.14]
[1734426053950,7.14181184,217.56,217.49,2.14]
[1734426054157,7.14181184,217.56,217.5,7.14181184]
[1734426055555,7.14181184,217.56,217.52,2.2987]
[1734426055753,7.14181184,217.56,217.5,7.14181184]
[1734426055960,7.14181184,217.58,217.5,7.14181184]
[1734426056854,7.14181184,217.58,217.53,2.2985]
[1734426057050,7.14181184,217.58,217.54,2.14]
[1734426057554,9.43991184,217.58,217.54,2.14]
[1734426057949,7.14181184,217.56,217.54,2.14]
[1734426059860,9.44021184,217.56,217.51,4.4388]
[1734426060156,7.14181184,217.54,217.51,2.14]
[1734426061057,7.14181184,217.54,217.5,2.14]
[1734426061572,9.44031184,217.54,217.5,2.14]
[1734426062053,7.14181184,217.54,217.47,12.54388127]
[1734426062257,7.14181184,217.5,217.48,2.14]
[1734426062453,7.14181184,217.5,217.46,2.14]
[1734426062862,7.14181184,217.48,217.42,1.536]
[1734426063160,7.14181184,217.48,217.43,2.14]
[1734426063359,2.2995,217.45,217.43,2.14]
[1734426063556,7.14181184,217.44,217.41,2.14]
[1734426063958,7.14181184,217.44,217.37,7.14181184]
[1734426064263,7.14181184,217.44,217.38,2.14]
[1734426064765,7.14181184,217.42,217.38,2.14]
[1734426065661,7.14181184,217.42,217.36,9.28181184]
[1734426066061,2.3,217.41,217.36,11.58221184]
[1734426068355,2.3,217.4,217.36,11.58221184]
[1734426069262,2.3,217.4,217.36,4.4404]
[1734426069964,7.14181184,217.38,217.35,2.14]
[1734426070468,7.14181184,217.38,217.32,5.9845]
[1734426070962,7.14181184,217.38,217.32,4.4407]
[1734426071464,2.3003,217.37,217.32,4.4407]
[1734426072266,7.14181184,217.36,217.32,2.14]
[1734426072566,7.14181184,217.36,217.31,4.4409]
[1734426072766,7.14181184,217.38,217.31,9.28181184]
[1734426072961,7.14181184,217.4,217.33,7.14181184]
[1734426073162,7.14181184,217.42,217.35,7.14181184]
[1734426073361,2.3,217.41,217.35,7.14181184]
[1734426073562,2.3,217.41,217.36,2.14]
[1734426073767,7.14181184,217.4,217.36,2.14]
[1734426073961,9.44191184,217.4,217.36,2.14]
[1734426074968,2.3001,217.39,217.36,2.14]
[1734426075661,9.44181184,217.4,217.36,4.4404]
[1734426078195,2.14,217.47,217.37,7.14181184]
[1734426078396,7.14181184,217.44,217.37,7.14181184]
[1734426078793,2.2997,217.43,217.39,2.3]
[1734426079093,7.14181184,217.44,217.39,2.3]
[1734426079289,2.2999,217.41,217.37,9.44211184]
[1734426079490,2.2999,217.41,217.37,2.3003]
[1734426079693,7.14181184,217.41,217.36,2.14]
[1734426080000,2.3,217.4,217.36,2.14]
[1734426081593,2.3,217.4,217.36,4.4404]
[1734426082493,9.44171184,217.41,217.36,4.4404]
[1734426082694,7.14181184,217.44,217.37,7.14181184]
[1734426083290,7.14181184,217.44,217.36,2.14]
[1734426083291,9.44141184,217.44,217.38,2.3001]
[1734426083491,7.14181184,217.44,217.37,7.14181184]
[1734426084089,7.14181184,217.42,217.37,2.3002]
[1734426084290,7.14181184,217.42,217.36,2.14]
[1734426085384,2.2995,217.45,217.41,2.2999]
[1734426085880,2.2995,217.45,217.41,4.4399]
[1734426086265,7.14181184,217.46,217.41,2.14]
[1734426086785,3.1558,217.5,217.41,2.14]
[1734426086975,9.44081184,217.49,217.45,2.2994]
[1734426087173,7.14181184,217.49,217.42,7.14181184]
[1734426087369,1.5934,217.5,217.47,2.2992]
[1734426087593,1.5934,217.5,217.32,4.6016]
[1734426087594,2.2988,217.52,217.46,9.28181184]
[1734426087802,2.2988,217.52,217.47,2.14]
[1734426088102,9.44061184,217.52,217.47,2.14]
[1734426088698,9.44061184,217.52,217.47,4.4392]
[1734426090808,7.14181184,217.48,217.47,2.14]
[1734426091108,7.14181184,217.48,217.43,2.14]
[1734426091293,7.14181184,217.48,217.43,4.4396]
[1734426091294,9.44091184,217.48,217.43,4.4396]
[1734426092801,9.44091184,217.48,217.44,2.2995]
[1734426094004,9.44091184,217.48,217.43,4.4396]
[1734426094205,2.2993,217.47,217.43,4.4396]
[1734426094409,7.14181184,217.46,217.43,4.4396]
[1734426094616,7.14181184,217.44,217.43,2.14]
[1734426095393,7.14181184,217.44,217.4,2.2999]
[1734426096087,7.14181184,217.44,217.41,2.2999]
[1734426096379,7.14181184,217.46,217.41,2.2999]
[1734426096586,9.44121184,217.46,217.41,2.2999]
[1734426097482,2.2995,217.45,217.41,2.2999]
[1734426099100,7.14181184,217.44,217.39,2.14]
[1734426099305,7.14181184,217.44,217.24,52.6]
[1734426099306,7.14181184,217.44,217.37,7.14181184]
[1734426099508,7.14181184,217.42,217.35,7.14181184]
[1734426099909,7.14181184,217.42,217.36,2.14]
[1734426100107,2.3,217.41,217.37,2.3003]
[1734426102407,2.3001,217.39,217.35,2.3005]
[1734426102797,7.14181184,217.4,217.34,2.14]
[1734426103000,7.14181184,217.38,217.34,4.4405]
[1734426103602,7.14181184,217.4,217.35,2.3005]
[1734426104698,9.44181184,217.4,217.35,2.3005]
[1734426105185,7.14181184,217.36,217.26,1.4881]
[1734426105400,5.3304,217.47,217.26,1.4881]
[1734426105401,7.14181184,217.34,217.28,6.98994775]
[1734426105589,7.14181184,217.34,217.29,4.84994775]
[1734426105779,7.14181184,217.34,217.27,8.78081184]
[1734426105977,7.14181184,217.32,217.28,4.85018336]
[1734426106184,7.14181184,217.32,217.27,2.14]
[1734426106385,9.44271184,217.32,217.27,4.4413]
[1734426106584,9.44271184,217.32,217.27,2.14]
[1734426107080,9.44271184,217.32,217.27,2.3013]
[1734426109388,9.44271184,217.32,217.27,7.14181184]
[1734426109584,9.44271184,217.32,217.28,2.3012]
[1734426114299,9.44271184,217.32,217.27,2.3013]
[1734426115199,2.301,217.31,217.27,2.3013]
[1734426115401,7.14181184,217.3,217.24,2.3016]
[1734426115597,7.14181184,217.3,217.25,2.14]
[1734426115900,2.3009,217.31,217.25,9.28181184]
[1734426116301,9.44261184,217.32,217.25,9.28181184]
[1734426116902,9.44261184,217.32,217.27,2.3013]
[1734426117303,2.3009,217.31,217.27,2.3013]
[1734426117708,7.14181184,217.3,217.25,2.14]
[1734426117902,2.3012,217.29,217.25,2.14]
[1734426119100,2.3012,217.29,217.25,2.3015]
[1734426119801,2.3012,217.29,217.24,4.4416]
[1734426120196,7.14181184,217.3,217.24,4.4416]
[1734426120397,2.3014,217.27,217.24,2.14]
[1734426120601,7.14181184,217.26,217.23,2.14]
[1734426121196,7.14181184,217.26,217.18,7.14181184]
[1734426121197,7.14181184,217.24,217.18,7.14181184]
[1734426121397,7.14181184,217.24,217.19,2.3243]
[1734426121704,9.44381184,217.22,217.19,2.3243]
[1734426122100,7.14181184,217.22,217.19,2.3243]
[1734426122401,2.3021,217.21,217.19,2.3243]
[1734426123604,9.44371184,217.22,217.19,2.3243]
[1734426124103,9.44371184,217.22,217.19,0.1843]
[1734426125207,7.14181184,217.22,217.19,0.1843]
[1734426125802,2.302,217.21,217.19,0.1843]
[1734426126202,7.14181184,217.22,217.19,0.1843]
[1734426126404,3.11,217.26,217.19,0.1843]
[1734426126405,7.14181184,217.2,217.19,0.1843]
[1734426127497,9.44391184,217.2,217.19,0.1843]
[1734426127902,2.3021,217.2,217.19,0.1843]
[1734426128108,2.14,217.23,217.11,5.46549976]
[1734426128306,7.14181184,217.18,217.12,7.14181184]
[1734426128700,2.14,217.22,217.14,2.3026]
[1734426128701,2.3019,217.22,217.14,2.3026]
[1734426128903,7.14181184,217.19,217.12,7.14181184]
[1734426129301,7.14181184,217.19,217.15,2.3026]
[1734426129609,7.14181184,217.21,217.14,7.14181184]
[1734426129809,7.14181184,217.21,217.16,2.3024]
[1734426129810,9.44381184,217.21,217.16,2.3024]
[1734426130009,7.14181184,217.21,217.15,2.14]
[1734426130906,7.14181184,217.21,217.17,2.3023]
[1734426131108,7.14181184,217.21,217.15,2.14]
[1734426131309,2.3016,217.25,217.16,7.14181184]
[1734426131510,7.14181184,217.24,217.2,2.3021]
[1734426131704,7.14181184,217.22,217.15,2.14]
[1734426131900,7.14181184,217.2,217.15,2.14]
[1734426132808,7.14181184,217.2,217.16,2.3025]
[1734426135008,7.14181184,217.2,217.17,2.3024]
[1734426135307,7.14181184,217.2,217.12,1.5028]
[1734426135308,9.44391184,217.2,217.12,1.5028]
[1734426135502,7.14181184,217.18,217.13,2.14]
[1734426135707,7.14181184,217.18,217.12,1.5028]
[1734426136108,7.14181184,217.18,217.12,3.6428]
[1734426136510,7.14181184,217.18,217.15,2.3026]
[1734426137512,9.44421184,217.18,217.14,2.3027]
[1734426137715,9.44421184,217.18,217.12,3.6428]
[1734426138308,7.14181184,217.18,217.12,3.6428]
[1734426138814,7.14181184,217.19,217.16,2.3025]
[1734426142513,7.14181184,217.21,217.15,7.14181184]
[1734426142709,7.14181184,217.23,217.15,7.14181184]
[1734426143115,7.14181184,217.23,217.19,2.3021]
[1734426143310,7.14181184,217.23,217.17,2.14]
[1734426144319,7.14181184,217.23,217.19,2.3021]
[1734426144817,7.14181184,217.23,217.17,2.14]
[1734426144818,2.3019,217.22,217.17,2.14]
[1734426145114,7.14181184,217.21,217.17,2.14]
[1734426145314,2.3021,217.2,217.15,2.14]
[1734426145514,7.14181184,217.19,217.15,2.14]
[1734426146413,7.14181184,217.19,217.16,2.3024]
[1734426147310,7.14181184,217.17,217.11,5.63323966]
[1734426147514,7.14181184,217.13,217.04,1.6076]
[1734426147713,2.14,217.21,217.12,4.84906263]
[1734426147912,7.14181184,217.14,217.1,2.3031]
[1734426150723,9.44451184,217.14,217.1,2.3031]
[1734426151611,1.5286,217.25,217.11,7.14181184]
[1734426151815,7.14181184,217.21,217.13,7.14181184]
[1734426152121,7.14181184,217.21,217.14,2.14]
[1734426152716,7.14181184,217.19,217.14,2.14]
[1734426153920,9.44411184,217.19,217.14,4.4427]
[1734426154214,7.14181184,217.19,217.14,4.4427]
[1734426154425,7.14181184,217.17,217.14,4.4427]
[1734426154819,7.14181184,217.17,217.14,2.14]
[1734426155217,7.14181184,217.15,217.11,2.14]
[1734426155517,7.14181184,217.15,217.12,4.86032904]
[1734426155712,7.14181184,217.15,217.11,2.14]
[1734426155918,7.14181184,217.15,217.1,2.14]
[1734426156117,7.14181184,217.15,217.11,7.16388245]
[1734426156316,7.14181184,217.15,217.1,2.14]
[1734426156317,2.3025,217.16,217.1,2.14]
[1734426156512,2.3025,217.16,217.11,4.86194568]
[1734426156721,7.14181184,217.17,217.12,4.86194568]
[1734426156923,9.44421184,217.17,217.12,7.16484568]
[1734426157121,9.44421184,217.17,217.12,2.3029]
[1734426158320,2.3027,217.15,217.1,4.4431]
[1734426158518,7.14181184,217.15,217.11,4.864648]
[1734426158820,7.14181184,217.15,217.1,4.4431]
[1734426159025,7.14181184,217.15,217.11,7.16878738]
[1734426159327,2.3026,217.16,217.1,2.14]
[1734426159526,2.3026,217.16,217.11,4.86746808]
[1734426159720,2.3026,217.16,217.12,7.17036808]
[1734426159926,2.3026,217.16,217.12,2.3029]
[1734426161528,7.14181184,217.15,217.12,2.3029]
[1734426161828,9.44441184,217.15,217.11,2.303]
[1734426162031,9.44441184,217.15,217.12,4.87190219]
[1734426162224,9.44441184,217.15,217.11,2.303]
[1734426162619,9.44471184,217.13,217.09,2.14]
[1734426162825,9.44471184,217.13,217.1,4.87472116]
[1734426163031,9.44471184,217.13,217.11,4.87472116]
[1734426163226,9.44471184,217.13,217.09,4.4432]
[1734426163421,9.44471184,217.13,217.1,4.87741884]
[1734426163623,7.14181184,217.11,217.04,2.14]
[1734426163928,7.14181184,217.09,217.04,4.4438]
[1734426164134,7.14181184,217.09,217.05,4.87933689]
[1734426164326,7.14181184,217.09,217.06,4.87933689]
[1734426164528,7.14181184,217.09,217.07,4.87933689]
[1734426164829,7.14181184,217.09,217.08,4.87933689]
[1734426164830,9.44511184,217.09,217.08,4.87933689]
[1734426166328,7.14181184,217.09,217.04,2.14]
[1734426166531,7.14181184,217.09,217.05,7.18432678]
[1734426166732,7.14181184,217.09,217.06,4.88072678]
[1734426166927,7.14181184,217.09,217.07,4.88072678]
[1734426167230,7.14181184,217.09,217.08,4.88072678]
[1734426167725,7.14181184,217.11,217.08,4.88072678]
[1734426167924,7.14181184,217.11,217.04,9.28181184]
[1734426168124,7.14181184,217.11,217.07,2.3034]
[1734426168320,7.14181184,217.11,217.08,4.88149032]
[1734426168523,7.14181184,217.11,217.06,2.14]
[1734426168730,7.14181184,217.13,217.07,4.88083472]
[1734426168931,7.14181184,217.13,217.08,4.88083472]
[1734426169226,7.14181184,217.13,217.09,7.18353644]
[1734426169434,7.14181184,217.13,217.09,2.3032]
[1734426170824,9.44461184,217.13,217.09,2.3032]
[1734426175734,9.44461184,217.13,217.1,4.88042464]
[1734426176038,9.44461184,217.13,217.09,2.3032]
[1734426176231,9.44461184,217.13,217.1,4.88082497]
[1734426176432,7.14181184,217.11,217.07,2.3034]
[1734426176631,7.14181184,217.09,217.08,4.88232471]
[1734426177338,9.44511184,217.09,217.08,4.88232471]
[1734426177934,9.44511184,217.09,217.03,2.14]
[1734426178142,9.44511184,217.09,217.04,7.02558662]
[1734426178339,9.44511184,217.09,217.05,4.88558662]
[1734426178540,9.44511184,217.09,217.06,4.88558662]
[1734426178735,9.44511184,217.09,217.07,4.88558662]
[1734426178937,9.44511184,217.09,217.05,2.3037]
[1734426179137,9.44511184,217.09,217.06,4.8858251]
[1734426179339,9.44511184,217.09,217.07,4.8858251]
[1734426179639,9.44511184,217.09,217.05,2.3037]
[1734426179839,9.44511184,217.09,217.06,4.88502365]
[1734426180038,9.44511184,217.09,217.07,4.88502365]
[1734426180241,9.44511184,217.09,217.05,2.3037]
[1734426180442,9.44511184,217.09,217.06,4.88526657]
[1734426180631,9.44511184,217.09,217.07,4.88526657]
[1734426180840,9.44511184,217.09,217.05,2.3037]
[1734426181138,9.44511184,217.09,217.06,4.88697116]
[1734426181444,2.14,217.15,217.07,4.88697116]
[1734426181445,2.3034,217.08,217.07,4.88697116]
[1734426181643,2.14,217.15,217.02,2.14]
[1734426181937,2.3036,217.06,217.02,4.444]
[1734426182140,0.71397869,217.14,217.01,2.14]
[1734426182340,1.42795754,217.14,217.01,2.14]
[1734426182538,7.14181184,217.06,217.01,2.14]
[1734426182738,7.14181184,217.06,217.03,2.3039]
[1734426183440,9.44541184,217.06,217.03,2.3039]
[1734426184141,7.14181184,217.06,217.03,2.3039]
[1734426184746,7.14181184,217.06,217.01,2.14]
[1734426185042,7.14181184,217.06,217.04,2.3038]
[1734426185644,7.14181184,217.06,217.03,2.3039]
[1734426185847,7.14181184,217.04,217.03,2.3039]
[1734426186549,2.16,217.09,217.0,0.27772]
[1734426186847,7.14181184,217.05,217.0,0.27772]
[1734426187038,7.14181184,217.05,217.03,2.3039]
[1734426188747,2.3035,217.07,217.03,2.3039]
[1734426188937,7.14181184,217.05,217.03,2.3039]
[1734426190438,7.14181184,217.05,217.0,0.27772]
[1734426190637,7.14181184,217.01,217.0,0.27772]
[1734426192149,7.14181184,217.03,217.0,0.27772]
[1734426192445,7.14181184,217.01,217.0,0.27772]
[1734426193943,9.44591184,217.01,217.0,0.27772]
[1734426198949,2.3041,217.01,217.0,0.27772]
[1734426199149,9.44591184,217.01,217.0,0.27772]
[1734426202048,2.3039,217.03,217.0,0.27772]
[1734426202257,7.14181184,217.03,217.0,0.27772]
[1734426202845,9.44581184,217.03,217.0,2.58192]
[1734426203850,7.14181184,217.01,217.0,0.27772]
[1734426204839,9.44591184,217.01,217.0,0.27772]
[1734426205645,2.3043,217.0,216.96,2.16]
[1734426208154,7.14181184,216.99,216.96,4.4646]
[1734426209752,7.14181184,216.99,216.96,2.16]
[1734426209952,7.14181184,216.99,216.97,2.3045]
[1734426211152,7.14181184,216.99,216.96,2.16]
[1734426211352,3.6891,217.08,216.98,2.3044]
[1734426211353,7.14181184,217.01,216.98,2.3044]